fUSD/lending_fUSD_20260529
["ID","MTS","AMOUNT","RATE_DAILY","PERIOD"]
[423279339,1780018239000,-500.0,0.00014999,2]
[423279382,1780018240000,-1406.51013258,0.00015,2]
[423279378,1780018240000,-2877.10776756,0.00015,2]
[423279379,1780018240000,-47717.25545818,0.00015,2]
[423279380,1780018240000,-1297.44300526,0.00015,2]
[423279383,1780018240000,-1318578.08159848,0.00015,2]
[423279388,1780018240000,-273.1454,0.00015,2]
[423279384,1780018240000,-197794.81770569,0.00015,2]
[423279385,1780018240000,-514.53602507,0.00015,2]
[423279386,1780018240000,-463.52887949,0.00015,2]
[423279387,1780018240000,-375.4692725,0.00015,2]
[423279381,1780018240000,-416.75630791,0.00015,2]
[423279396,1780018243000,-419.2438828,0.00014999,2]
[423279394,1780018243000,-500.0,0.00014899,2]
[423279395,1780018243000,-124.32404716,0.00014999,2]
[423279397,1780018243000,-3454.00132108,0.00015,2]
[423279398,1780018243000,-10534.7844,0.00015,2]
[423279401,1780018243000,-550.52434579,0.00015,2]
[423279402,1780018243000,-1013.8487689,0.00015,2]
[423279399,1780018243000,-301.96676387,0.00015,2]
[423279489,1780018247000,-684.78,0.00015,2]
[423279487,1780018247000,-4935.94535742,0.00015,2]
[423279488,1780018247000,-6759.24216702,0.00015,2]
[423279486,1780018247000,-906.56,0.00015,2]
[423279490,1780018279000,488.61879521,0.00027872,120]
[423279492,1780018328000,1220.49,0.00028082,120]
[423279493,1780018332000,2239.5,0.00028082,120]
[423279494,1780018339000,610.25,0.00028082,120]
[423279495,1780018355000,610.23,0.00028082,120]
[423279497,1780018377000,184.52697733,0.00028082,120]
[423279498,1780018387000,245.69514884,0.00011316,7]
[423279499,1780018388000,245.69514884,0.00011542,7]
[423279500,1780018391000,245.69514884,0.00011881,7]
[423279501,1780018464000,500.0,0.00028082,120]
[423279504,1780018523000,1158.09699426,0.00028082,120]
[423279503,1780018523000,-160.0,0.0001203,2]
[423279507,1780018577000,-160.0,0.00012037,2]
[423279511,1780018631000,-160.0,0.00012044,2]
[423279512,1780018709000,4578.0,0.00028082,120]
[423279513,1780018770000,6189.0,0.00028082,120]
[423279514,1780018800000,500.0,0.00019602,120]
[423279515,1780018802000,150.0,0.00019602,120]
[423279516,1780018802000,253.03425189,0.00019602,120]
[423279517,1780018803000,2593.0,0.00027073,120]
[423279518,1780018815000,5207.34,0.00028082,120]
[423279519,1780018842000,2686.92926209,0.00028082,120]
[423279520,1780018882000,-160.0,0.00012071,2]
[423279521,1780018935000,-160.0,0.00012078,2]
[423279523,1780018989000,1598.088,0.00028082,120]
[423279522,1780018989000,-245.69514884,0.00012221,7]
[423279525,1780019016000,156.3,6.581e-05,2]
[423279524,1780019016000,156.3,6.17e-05,2]
[423279530,1780019017000,156.3,8.226e-05,2]
[423279528,1780019017000,156.3,7.404e-05,2]
[423279526,1780019017000,91.23647465,6.992e-05,2]
[423279527,1780019017000,65.06352535,6.992e-05,2]
[423279529,1780019017000,156.3,7.815e-05,2]
[423279534,1780019018000,156.3,9.872e-05,2]
[423279533,1780019018000,156.3,9.46e-05,2]
[423279532,1780019018000,156.3,9.049e-05,2]
[423279531,1780019018000,156.3,8.638e-05,2]
[423279536,1780019043000,156.3,0.00010694,2]
[423279535,1780019043000,156.3,0.00010283,2]
[423279539,1780019096000,-104.22964335,0.00011106,2]
[423279540,1780019115000,1815.0,0.0002699,120]
[423279541,1780019150000,-52.07035665,0.00011106,2]
[423279542,1780019151000,2853.495411,0.00028082,120]
[423279567,1780019202000,163.95,0.00010184,2]
[423279566,1780019202000,-351.766118,0.00011211,2]
[423279569,1780019204000,-191.17744736,0.00011211,2]
[423279568,1780019204000,2000.0,0.00028082,120]
[423279625,1780019256000,-18.34709751,0.00011211,2]
[423279626,1780019308000,-162.16314875,0.00011311,2]
[423279628,1780019361000,-357.49907163,0.00011311,2]
[423279629,1780019362000,1000.0,0.00028081,120]
[423279630,1780019400000,541.82055113,0.00016088,120]
[423279631,1780019409000,1271.0,0.00026957,120]
[423279633,1780019431000,-215.50460005,0.00011333,2]
[423279635,1780019431000,-8.19539995,0.00011778,2]
[423279634,1780019431000,-156.3,0.00011517,2]
[423279637,1780019431000,-403.98777925,0.00011916,2]
[423279638,1780019431000,-290.91222075,0.00011916,2]
[423279639,1780019431000,-156.3,0.00011928,2]
[423279640,1780019431000,-37.28777925,0.00011951,2]
[423279636,1780019431000,-201.32914491,0.00011778,2]
[423279662,1780019432000,-24492.13527378,0.00012428,2]
[423279665,1780019432000,-152.0,0.00012444,4]
[423279664,1780019432000,-508.34597365,0.00012442,2]
[423279675,1780019432000,-160.32,0.0001273,2]
[423279674,1780019432000,-2525.56,0.0001273,2]
[423279678,1780019432000,-1000.0,0.0001273,2]
[423279683,1780019432000,-152.0,0.00012908,11]
[423279684,1780019432000,-152.0,0.00012974,12]
[423279685,1780019432000,-152.0,0.0001304,13]
[423279676,1780019432000,-221.27,0.0001273,2]
[423279677,1780019432000,-1668.77,0.0001273,2]
[423279680,1780019432000,-12272.03771707,0.00012792,2]
[423279682,1780019432000,-676.29,0.00012883,2]
[423279681,1780019432000,-152.0,0.00012842,10]
[423279687,1780019432000,-167.46,0.00013112,2]
[423279686,1780019432000,-152.0,0.00013106,14]
[423279689,1780019432000,-152.0,0.00013173,15]
[423279697,1780019432000,-971.31,0.00013447,2]
[423279696,1780019432000,-152.0,0.00013438,19]
[423279661,1780019432000,-152.0,0.00012378,3]
[423279688,1780019432000,-1680.0,0.00013146,2]
[423279691,1780019432000,-152.0,0.00013239,16]
[423279690,1780019432000,-676.29,0.00013182,2]
[423279692,1780019432000,-152.0,0.00013305,17]
[423279693,1780019432000,-152.0,0.00013371,18]
[423279679,1780019432000,-152.0,0.00012775,9]
[423279660,1780019432000,-209.03147293,0.00012345,2]
[423279699,1780019432000,-150.0,0.00013488,2]
[423279667,1780019432000,-152.0,0.00012577,6]
[423279694,1780019432000,-152.0,0.00013376,7]
[423279641,1780019432000,-1162.71222075,0.00011951,2]
[423279644,1780019432000,-160.0,0.00012161,2]
[423279646,1780019432000,-254.92905569,0.00012216,2]
[423279645,1780019432000,-620.0,0.00012188,2]
[423279643,1780019432000,-676.29,0.00011984,2]
[423279647,1780019432000,-3854.0,0.00012241,2]
[423279642,1780019432000,-971.31,0.00011953,2]
[423279648,1780019432000,-395.0,0.00012247,2]
[423279650,1780019432000,-676.29,0.00012283,2]
[423279659,1780019432000,-209.52454486,0.00012344,2]
[423279649,1780019432000,-215.0,0.00012277,2]
[423279666,1780019432000,-152.0,0.0001251,5]
[423279652,1780019432000,-293.99712603,0.00012287,2]
[423279657,1780019432000,-1011.0,0.00012333,2]
[423279655,1780019432000,-1713.0,0.00012307,2]
[423279656,1780019432000,-1688.0,0.00012308,2]
[423279651,1780019432000,-1338.0,0.00012284,2]
[423279653,1780019432000,-6594.4561316,0.00012287,2]
[423279658,1780019432000,-156.3,0.0001234,2]
[423279670,1780019432000,-245.69514884,0.00012674,7]
[423279672,1780019432000,-152.0,0.00012709,8]
[423279673,1780019432000,-2000.0,0.0001273,2]
[423279663,1780019432000,-152.81357396,0.00012442,2]
[423279669,1780019432000,-152.0,0.00012643,7]
[423279668,1780019432000,-676.29,0.00012583,2]
[423279654,1780019432000,-747.0,0.00012301,2]
[423279695,1780019432000,-9255.114641,0.00013425,2]
[423279717,1780019432000,-5977.9338,0.00013599,2]
[423279700,1780019432000,-150.0,0.00013488,2]
[423279730,1780019432000,-500.0,0.00013699,10]
[423279726,1780019432000,-166.66,0.00013699,2]
[423279734,1780019432000,-150.0,0.00013712,2]
[423279742,1780019432000,-150.0,0.00013787,2]
[423279733,1780019432000,-152.0,0.00013703,23]
[423279743,1780019432000,-150.0,0.00013809,2]
[423279735,1780019432000,-150.0,0.00013718,2]
[423279736,1780019432000,-150.0,0.00013737,2]
[423279744,1780019432000,-150.0,0.00013812,2]
[423279698,1780019432000,-150.0,0.00013488,2]
[423279739,1780019432000,-152.0,0.00013769,24]
[423279738,1780019432000,-150.0,0.00013762,2]
[423279728,1780019432000,-500.0,0.00013699,10]
[423279740,1780019432000,-150.0,0.00013787,2]
[423279745,1780019432000,-150.0,0.00013834,2]
[423279746,1780019432000,-152.0,0.00013835,25]
[423279748,1780019432000,-150.0,0.00013837,2]
[423279749,1780019432000,-150.0,0.00013862,2]
[423279747,1780019432000,-166.66,0.00013836,2]
[423279751,1780019432000,-150.0,0.00013887,2]
[423279750,1780019432000,-150.0,0.00013887,2]
[423279756,1780019432000,-150.0,0.00013949,2]
[423279753,1780019432000,-150.0,0.00013912,2]
[423279754,1780019432000,-150.0,0.00013916,2]
[423279752,1780019432000,-152.0,0.00013901,26]
[423279755,1780019432000,-150.0,0.00013937,2]
[423279741,1780019432000,-150.0,0.00013787,2]
[423279725,1780019432000,-150.0,0.00013687,2]
[423279737,1780019432000,-150.0,0.00013737,2]
[423279727,1780019432000,-500.0,0.00013699,10]
[423279705,1780019432000,-150.0,0.00013488,2]
[423279731,1780019432000,-185.20326433,0.00013699,10]
[423279701,1780019432000,-150.0,0.00013488,2]
[423279706,1780019432000,-150.0,0.00013488,2]
[423279704,1780019432000,-150.0,0.00013488,2]
[423279707,1780019432000,-210.62840596,0.00013499,2]
[423279703,1780019432000,-150.83469577,0.00013488,2]
[423279702,1780019432000,-150.0,0.00013488,2]
[423279708,1780019432000,-152.0,0.00013504,20]
[423279711,1780019432000,-150.0,0.00013563,2]
[423279719,1780019432000,-10439.12,0.00013608,2]
[423279710,1780019432000,-150.0,0.00013538,2]
[423279720,1780019432000,-150.0,0.00013613,2]
[423279709,1780019432000,-150.0,0.00013513,2]
[423279713,1780019432000,-150.0,0.00013588,2]
[423279712,1780019432000,-152.0,0.0001357,21]
[423279724,1780019432000,-150.0,0.00013687,2]
[423279723,1780019432000,-150.0,0.00013663,2]
[423279721,1780019432000,-152.0,0.00013636,22]
[423279732,1780019432000,-150.0,0.00013702,2]
[423279729,1780019432000,-500.0,0.00013699,10]
[423279715,1780019432000,-150.0,0.00013595,2]
[423279718,1780019432000,-150.0,0.00013603,2]
[423279716,1780019432000,-35923.674,0.00013599,2]
[423279714,1780019432000,-150.0,0.00013588,2]
[423279722,1780019432000,-150.0,0.00013638,2]
[423279781,1780019433000,-150.0,0.00014187,2]
[423279795,1780019433000,-500.0,0.00014189,2]
[423279782,1780019433000,-500.0,0.00014188,2]
[423279785,1780019433000,-500.0,0.00014188,2]
[423279786,1780019433000,-500.0,0.00014188,2]
[423279787,1780019433000,-500.0,0.00014189,2]
[423279790,1780019433000,-500.0,0.00014189,2]
[423279793,1780019433000,-500.0,0.00014189,2]
[423279792,1780019433000,-500.0,0.00014189,2]
[423279794,1780019433000,-500.0,0.00014189,2]
[423279797,1780019433000,-500.0,0.00014189,2]
[423279796,1780019433000,-500.0,0.00014189,2]
[423279799,1780019433000,-500.0,0.00014189,2]
[423279802,1780019433000,-500.0,0.00014189,2]
[423279791,1780019433000,-500.0,0.00014189,2]
[423279798,1780019433000,-500.0,0.00014189,2]
[423279800,1780019433000,-500.0,0.00014189,2]
[423279803,1780019433000,-500.0,0.00014189,2]
[423279813,1780019433000,-150.0,0.00014287,2]
[423279806,1780019433000,-152.0,0.00014232,31]
[423279807,1780019433000,-150.0,0.00014237,2]
[423279805,1780019433000,-150.0,0.00014212,2]
[423279783,1780019433000,-500.0,0.00014188,2]
[423279801,1780019433000,-500.0,0.00014189,2]
[423279784,1780019433000,-500.0,0.00014188,2]
[423279804,1780019433000,-294.68372899,0.00014189,2]
[423279789,1780019433000,-500.0,0.00014189,2]
[423279757,1780019433000,-150.0,0.00013962,2]
[423279758,1780019433000,-152.0,0.00013967,27]
[423279759,1780019433000,-166.66,0.00013973,2]
[423279760,1780019433000,-150.0,0.00013987,2]
[423279768,1780019433000,-150.0,0.00014064,2]
[423279769,1780019433000,-150.0,0.00014087,2]
[423279761,1780019433000,-150.0,0.00013987,2]
[423279767,1780019433000,-150.0,0.00014062,2]
[423279762,1780019433000,-150.0,0.00013987,2]
[423279763,1780019433000,-150.0,0.00014012,2]
[423279765,1780019433000,-152.0,0.00014034,28]
[423279779,1780019433000,-150.0,0.00014179,2]
[423279764,1780019433000,-150.0,0.00014023,2]
[423279771,1780019433000,-150.0,0.00014087,2]
[423279770,1780019433000,-150.0,0.00014087,2]
[423279777,1780019433000,-150.0,0.00014162,2]
[423279778,1780019433000,-152.0,0.00014166,30]
[423279776,1780019433000,-150.0,0.00014137,2]
[423279772,1780019433000,-152.0,0.000141,29]
[423279774,1780019433000,-150.0,0.00014112,2]
[423279775,1780019433000,-150.0,0.0001413,2]
[423279773,1780019433000,-166.66,0.0001411,2]
[423279780,1780019433000,-150.0,0.00014187,2]
[423279788,1780019433000,-500.0,0.00014189,2]
[423279766,1780019433000,-150.0,0.00014037,2]
[423279809,1780019433000,-150.0,0.00014237,2]
[423279812,1780019433000,-150.0,0.00014262,2]
[423279808,1780019433000,-150.0,0.00014237,2]
[423279844,1780019433000,-152.0,0.00014497,35]
[423279839,1780019433000,-150.0,0.00014462,2]
[423279843,1780019433000,-150.0,0.00014487,2]
[423279837,1780019433000,-150.0,0.00014451,2]
[423279841,1780019433000,-150.0,0.00014487,2]
[423279846,1780019433000,-150.0,0.00014512,2]
[423279845,1780019433000,-700.0,0.000145,5]
[423279850,1780019433000,-150.0,0.00014562,2]
[423279848,1780019433000,-150.0,0.00014537,2]
[423279847,1780019433000,-150.0,0.00014525,2]
[423279849,1780019433000,-150.0,0.00014558,2]
[423279851,1780019433000,-152.0,0.00014564,36]
[423279852,1780019433000,-150.0,0.00014587,2]
[423279853,1780019433000,-150.0,0.00014587,2]
[423279854,1780019433000,-2000.0,0.000146,2]
[423279855,1780019433000,-2000.0,0.000146,3]
[423279856,1780019433000,-1100.0,0.000146,5]
[423279858,1780019433000,-152.0,0.0001463,37]
[423279857,1780019433000,-150.0,0.00014612,2]
[423279859,1780019433000,-150.0,0.00014637,2]
[423279863,1780019433000,-350.0,0.00014663,2]
[423279861,1780019433000,-150.0,0.00014662,2]
[423279862,1780019433000,-195.9,0.00014662,2]
[423279840,1780019433000,-250.0,0.00014475,2]
[423279842,1780019433000,-150.0,0.00014487,2]
[423279860,1780019433000,-150.0,0.0001464,2]
[423279838,1780019433000,-2351.0,0.00014461,2]
[423279810,1780019433000,-150.0,0.00014237,2]
[423279811,1780019433000,-166.66,0.00014247,2]
[423279814,1780019433000,-150.0,0.00014287,2]
[423279815,1780019433000,-150.0,0.00014295,2]
[423279822,1780019433000,-150.0,0.00014312,2]
[423279818,1780019433000,-2000.0,0.000143,2]
[423279819,1780019433000,-160.16,0.000143,2]
[423279835,1780019433000,-152.0,0.00014431,34]
[423279816,1780019433000,-152.0,0.00014299,32]
[423279817,1780019433000,-2000.0,0.000143,2]
[423279821,1780019433000,-329.36,0.000143,2]
[423279823,1780019433000,-2000.0,0.00014321,2]
[423279820,1780019433000,-323.48,0.000143,2]
[423279826,1780019433000,-150.0,0.00014362,2]
[423279825,1780019433000,-150.0,0.00014344,2]
[423279829,1780019433000,-150.0,0.00014387,2]
[423279828,1780019433000,-166.66,0.00014384,2]
[423279827,1780019433000,-152.0,0.00014365,33]
[423279830,1780019433000,-150.0,0.00014387,2]
[423279831,1780019433000,-150.0,0.00014387,2]
[423279832,1780019433000,-300.0,0.000144,5]
[423279833,1780019433000,-150.0,0.0001441,2]
[423279834,1780019433000,-150.0,0.00014412,2]
[423279824,1780019433000,-150.0,0.00014337,2]
[423279836,1780019433000,-150.0,0.00014437,2]
[423279900,1780019434000,-500.0,0.00014899,2]
[423279906,1780019434000,-500.0,0.00014899,2]
[423279896,1780019434000,-200.0,0.0001488,2]
[423279897,1780019434000,-150.0,0.00014886,2]
[423279891,1780019434000,-150.0,0.00014879,2]
[423279890,1780019434000,-200.0,0.00014879,2]
[423279892,1780019434000,-200.0,0.0001488,2]
[423279893,1780019434000,-500.0,0.0001488,2]
[423279894,1780019434000,-200.0,0.0001488,2]
[423279901,1780019434000,-500.0,0.00014899,2]
[423279911,1780019434000,-5000.0,0.000149,2]
[423279898,1780019434000,-150.0,0.00014886,2]
[423279903,1780019434000,-500.0,0.00014899,2]
[423279902,1780019434000,-500.0,0.00014899,2]
[423279904,1780019434000,-502.6690024,0.00014899,2]
[423279907,1780019434000,-500.0,0.00014899,2]
[423279916,1780019434000,-204.65865209,0.000149,2]
[423279908,1780019434000,-529.19931579,0.00014899,2]
[423279909,1780019434000,-500.0,0.00014899,2]
[423279910,1780019434000,-190.72078798,0.000149,2]
[423279917,1780019434000,-5244.62693491,0.000149,2]
[423279895,1780019434000,-200.0,0.0001488,2]
[423279899,1780019434000,-152.0,0.00014895,41]
[423279889,1780019434000,-150.0,0.00014871,2]
[423279884,1780019434000,-150.0,0.00014836,2]
[423279885,1780019434000,-555.19779,0.0001485,2]
[423279912,1780019434000,-640.88249483,0.000149,2]
[423279864,1780019434000,-150.0,0.00014665,2]
[423279866,1780019434000,-150.0,0.00014687,2]
[423279868,1780019434000,-152.0,0.00014696,38]
[423279865,1780019434000,-150.0,0.00014687,2]
[423279867,1780019434000,-150.0,0.00014687,2]
[423279870,1780019434000,-150.0,0.00014712,2]
[423279871,1780019434000,-150.0,0.00014737,2]
[423279869,1780019434000,-1400.0,0.000147,5]
[423279872,1780019434000,-150.0,0.00014737,2]
[423279873,1780019434000,-150.0,0.00014756,2]
[423279874,1780019434000,-150.0,0.00014762,2]
[423279875,1780019434000,-152.0,0.00014762,39]
[423279876,1780019434000,-505.0,0.00014767,2]
[423279877,1780019434000,-150.0,0.00014772,2]
[423279878,1780019434000,-150.0,0.00014786,2]
[423279879,1780019434000,-150.0,0.00014786,2]
[423279882,1780019434000,-150.0,0.00014811,2]
[423279880,1780019434000,-2474.2219,0.000148,2]
[423279881,1780019434000,-1800.0,0.000148,5]
[423279883,1780019434000,-152.0,0.00014828,40]
[423279886,1780019434000,-555.19779,0.0001485,2]
[423279887,1780019434000,-555.19779,0.0001486,2]
[423279888,1780019434000,-150.0,0.00014861,2]
[423279914,1780019434000,-3937.0,0.000149,5]
[423279913,1780019434000,-2000.0,0.000149,2]
[423279919,1780019434000,-203.62552242,0.000149,2]
[423279946,1780019434000,-153.0,0.00014988,2]
[423279945,1780019434000,-153.0,0.00014988,2]
[423279947,1780019434000,-153.0,0.00014988,2]
[423279948,1780019434000,-153.0,0.00014994,2]
[423279951,1780019434000,-4236.5346771,0.00014996,2]
[423279960,1780019434000,-405.8438221,0.00014999,2]
[423279950,1780019434000,-153.0,0.00014994,2]
[423279953,1780019434000,-2045.5159017,0.00014998,2]
[423279952,1780019434000,-151.0,0.00014997,2]
[423279956,1780019434000,-1103.07332993,0.00014999,5]
[423279955,1780019434000,-3492.5452598,0.00014998,2]
[423279943,1780019434000,-153.0,0.00014988,2]
[423279957,1780019434000,-1092.26222106,0.00014999,5]
[423279958,1780019434000,-3155.7589057,0.00014999,2]
[423279961,1780019434000,-193.36848797,0.00014999,2]
[423279962,1780019434000,-1092.26222106,0.00014999,5]
[423279964,1780019434000,-500.0,0.00014999,2]
[423279963,1780019434000,-1092.26222106,0.00014999,5]
[423279967,1780019434000,-500.0,0.00014999,2]
[423279966,1780019434000,-500.0,0.00014999,2]
[423279965,1780019434000,-500.0,0.00014999,2]
[423279969,1780019434000,-500.0,0.00014999,2]
[423279968,1780019434000,-500.0,0.00014999,2]
[423279915,1780019434000,-300.0,0.000149,5]
[423279959,1780019434000,-1064.0060932,0.00014999,2]
[423279944,1780019434000,-153.0,0.00014988,2]
[423279954,1780019434000,-1529.8371739,0.00014998,2]
[423279940,1780019434000,-151.0,0.00014988,2]
[423279942,1780019434000,-153.0,0.00014988,2]
[423279918,1780019434000,-1378.96598736,0.000149,2]
[423279924,1780019434000,-150.0,0.00014961,2]
[423279928,1780019434000,-2000.0,0.00014985,2]
[423279920,1780019434000,-150.0,0.00014911,2]
[423279921,1780019434000,-150.0,0.00014936,2]
[423279926,1780019434000,-443.76,0.00014985,2]
[423279923,1780019434000,-152.0,0.00014961,42]
[423279927,1780019434000,-756.49,0.00014985,2]
[423279922,1780019434000,-971.31,0.00014942,2]
[423279929,1780019434000,-549.27,0.00014985,2]
[423279930,1780019434000,-446.7,0.00014985,2]
[423279925,1780019434000,-155.18893265,0.00014984,2]
[423279949,1780019434000,-153.0,0.00014994,2]
[423279938,1780019434000,-155.78222317,0.00014986,2]
[423279937,1780019434000,-152.23131078,0.00014986,2]
[423279932,1780019434000,-151.5224192,0.00014986,2]
[423279934,1780019434000,-155.38078746,0.00014986,2]
[423279936,1780019434000,-154.66745118,0.00014986,2]
[423279933,1780019434000,-157.5431475,0.00014986,2]
[423279935,1780019434000,-173.96079952,0.00014986,2]
[423279931,1780019434000,-151.65429767,0.00014986,2]
[423279941,1780019434000,-151.0,0.00014988,2]
[423279939,1780019434000,-1584.66394522,0.00014988,2]
[423280009,1780019435000,-579.90479317,0.00014999,2]
[423280007,1780019435000,-500.0,0.00014999,2]
[423280008,1780019435000,-500.0,0.00014999,2]
[423280004,1780019435000,-500.0,0.00014999,2]
[423280002,1780019435000,-500.0,0.00014999,2]
[423279998,1780019435000,-500.0,0.00014999,2]
[423280005,1780019435000,-500.0,0.00014999,2]
[423279999,1780019435000,-500.0,0.00014999,2]
[423280000,1780019435000,-500.0,0.00014999,2]
[423280011,1780019435000,-500.0,0.00014999,2]
[423280001,1780019435000,-500.0,0.00014999,2]
[423280014,1780019435000,-517.97558109,0.00014999,2]
[423280022,1780019435000,-500.0,0.00014999,2]
[423280017,1780019435000,-375.06971065,0.00014999,2]
[423280010,1780019435000,-500.0,0.00014999,2]
[423280018,1780019435000,-500.0,0.00014999,2]
[423280015,1780019435000,-500.0,0.00014999,2]
[423280012,1780019435000,-500.0,0.00014999,2]
[423280013,1780019435000,-500.0,0.00014999,2]
[423280020,1780019435000,-500.0,0.00014999,2]
[423280019,1780019435000,-500.0,0.00014999,2]
[423280029,1780019435000,-500.0,0.00014999,2]
[423280030,1780019435000,-500.0,0.00014999,2]
[423280021,1780019435000,-500.0,0.00014999,2]
[423280006,1780019435000,-500.0,0.00014999,2]
[423280016,1780019435000,-399.82779555,0.00014999,2]
[423279996,1780019435000,-500.0,0.00014999,2]
[423279970,1780019435000,-500.0,0.00014999,2]
[423279995,1780019435000,-500.0,0.00014999,2]
[423280023,1780019435000,-500.0,0.00014999,2]
[423279971,1780019435000,-500.0,0.00014999,2]
[423279973,1780019435000,-500.0,0.00014999,2]
[423279972,1780019435000,-500.0,0.00014999,2]
[423279974,1780019435000,-622.69571317,0.00014999,2]
[423279975,1780019435000,-500.0,0.00014999,2]
[423279983,1780019435000,-500.0,0.00014999,10]
[423279979,1780019435000,-500.0,0.00014999,6]
[423279981,1780019435000,-500.0,0.00014999,8]
[423279982,1780019435000,-500.0,0.00014999,9]
[423279978,1780019435000,-500.0,0.00014999,5]
[423279976,1780019435000,-500.0,0.00014999,3]
[423279980,1780019435000,-500.0,0.00014999,7]
[423279977,1780019435000,-500.0,0.00014999,4]
[423279984,1780019435000,-500.0,0.00014999,11]
[423279988,1780019435000,-500.0,0.00014999,2]
[423279987,1780019435000,-500.0,0.00014999,2]
[423279986,1780019435000,-500.0,0.00014999,2]
[423279985,1780019435000,-539.04874116,0.00014999,12]
[423279991,1780019435000,-500.0,0.00014999,2]
[423279992,1780019435000,-500.0,0.00014999,2]
[423279989,1780019435000,-500.0,0.00014999,2]
[423279993,1780019435000,-500.0,0.00014999,2]
[423279990,1780019435000,-500.0,0.00014999,2]
[423279994,1780019435000,-186.29457933,0.00014999,2]
[423279997,1780019435000,-500.0,0.00014999,2]
[423280025,1780019435000,-500.0,0.00014999,2]
[423280003,1780019435000,-500.0,0.00014999,2]
[423280028,1780019435000,-500.0,0.00014999,2]
[423280055,1780019435000,-500.0,0.00014999,2]
[423280058,1780019435000,-500.0,0.00014999,2]
[423280057,1780019435000,-169.7783109,0.00014999,2]
[423280059,1780019435000,-500.0,0.00014999,2]
[423280063,1780019435000,-500.0,0.00014999,2]
[423280061,1780019435000,-500.0,0.00014999,2]
[423280062,1780019435000,-500.0,0.00014999,2]
[423280066,1780019435000,-500.0,0.00014999,2]
[423280075,1780019435000,-500.0,0.00014999,2]
[423280065,1780019435000,-500.0,0.00014999,2]
[423280067,1780019435000,-500.0,0.00014999,2]
[423280068,1780019435000,-500.0,0.00014999,2]
[423280070,1780019435000,-500.0,0.00014999,2]
[423280071,1780019435000,-500.0,0.00014999,2]
[423280074,1780019435000,-500.0,0.00014999,2]
[423280073,1780019435000,-500.0,0.00014999,2]
[423280072,1780019435000,-500.0,0.00014999,2]
[423280078,1780019435000,-150.0,0.00014999,2]
[423280076,1780019435000,-500.0,0.00014999,2]
[423280077,1780019435000,-170.41,0.00014999,2]
[423280080,1780019435000,-500.0,0.00014999,2]
[423280081,1780019435000,-500.0,0.00014999,2]
[423280079,1780019435000,-500.0,0.00014999,2]
[423280083,1780019435000,-500.0,0.00014999,2]
[423280024,1780019435000,-500.0,0.00014999,2]
[423280060,1780019435000,-500.0,0.00014999,2]
[423280056,1780019435000,-500.0,0.00014999,2]
[423280069,1780019435000,-500.0,0.00014999,2]
[423280064,1780019435000,-500.0,0.00014999,2]
[423280027,1780019435000,-500.0,0.00014999,2]